{"text_format":"1","workbook":"xlsx","n_sheets":2,"sheets":["エントリーシート","エントリーシート (見本)"],"not_rendered":{"charts":0,"images":0,"macros":1,"external_links":0,"defined_names":4,"comments":0,"pivot_tables":0},"unopened":[],"bounds":{"document_bytes":16777216,"sheet_cells":100000,"rows_first":2000,"rows_last":500,"rows_between":2000,"halvings":0,"cell_chars":16384,"cell_head_chars":4096},"cells_cut":0,"cells_raw":0,"read":"whole","date_system":"1900"}

{"sheet":"エントリーシート","index":0,"n_rows":91,"n_cols":25,"rows_kept":91,"cut":false,"hidden":false,"merged":[[28,8,28,19],[29,8,31,19],[58,11,58,14],[55,3,55,6],[56,3,56,6],[58,0,58,3],[74,1,74,19],[70,0,70,5],[61,11,62,13],[61,17,62,18],[69,0,69,5],[61,5,61,10],[62,5,62,10],[61,14,62,14],[35,9,35,19],[37,9,37,19],[38,9,38,19],[35,7,35,8],[49,4,49,6],[40,2,40,6],[39,9,39,19],[40,9,40,19],[51,0,51,19],[44,5,44,6],[46,0,48,0],[39,0,39,1],[40,0,40,1],[39,2,39,6],[79,1,79,19],[47,8,47,19],[48,8,48,19],[69,10,69,18],[70,10,70,18],[53,8,53,9],[54,8,54,9],[59,19,60,19],[61,19,62,19],[59,17,60,18],[59,11,60,13],[55,8,55,9],[56,8,56,9],[59,5,59,10],[60,5,60,10],[59,14,60,14],[58,17,58,19],[58,4,58,10],[46,8,46,19],[0,12,0,19],[6,15,6,17],[2,0,2,19],[17,0,17,3],[18,0,18,3],[57,0,57,19],[17,5,17,19],[19,5,19,19],[19,0,20,3],[20,5,20,19],[46,1,46,3],[46,5,46,6],[37,0,37,1],[21,0,31,0],[21,1,21,3],[53,3,53,6],[54,3,54,6],[53,0,56,2],[34,0,34,1],[35,0,35,1],[36,0,36,1],[34,2,34,6],[38,0,38,1],[10,13,10,15],[36,2,36,6],[37,2,37,6],[38,2,38,6],[34,7,34,8],[47,1,47,3],[47,5,47,6],[44,1,44,3],[34,9,34,19],[36,7,36,8],[37,7,37,8],[38,7,38,8],[39,7,39,8],[40,7,40,8],[36,9,36,19],[83,0,83,5],[83,10,83,18],[8,9,8,19],[9,9,9,19],[10,17,10,19],[11,16,11,19],[10,9,10,11],[18,5,18,6],[26,5,26,6],[27,5,27,6],[18,8,18,19],[28,5,28,6],[24,12,24,15],[75,0,78,0],[75,1,78,19],[21,5,21,19],[26,1,26,3],[27,1,27,3],[28,1,28,3],[30,1,30,3],[30,5,30,6],[48,1,48,3],[48,5,48,6],[35,2,35,6]]}
[null,null,null,null,null,null,null,null,null,null,null,null,"受付番号："]
[]
["令和８年度　空き地バンク登録物件活用支援金申込書（エントリーシート）"]
["　※エントリーシートは、募集パンフレットや補助金交付要綱の要件を確認のうえ、現時点での計画内容を記載してください。"]
["　　なお、申込者は原則として、後日、補助金等交付申請書を提出される方と同一である必要がありますので、ご注意願います。"]
["　※エントリーシートは、郵送または持参にて都市整備課へ提出してください。"]
[]
["いわき市長　様"]
[null,null,null,null,null,null,null,"住　所"]
[null,null,null,null,null,null,null,"氏　名"]
[null,null,null,null,null,null,null,"連絡先",null,null,null,null,"(",null,null,null,")"]
[null,null,null,null,null,null,null,"e-mail",null,null,null,null,"＠"]
[]
["　令和8年度空き地バンク登録物件活用支援金について、次のとおり申込ます。"]
[]
["１　補助対象住宅について"]
["　　建築又は購入する新築の住宅について、現時点の内容（予定）を記載してください。"]
[" ⑴住宅の所在地",null,null,null,"いわき市"]
[" ⑵土地取得日",null,null,null,null,null,null,null," ※令和３年４月１日以降に空き地バンクに登録された土地を取得された方が対象です。"]
[" ⑶所有名義人"]
[null,null,null,null,null,"※所有者全員を記入願います。\nなお、補助金の交付対象は持ち分が２分の１を超える方（持ち分が２分の１ずつである場合はいずれか一方）に限ります。"]
["⑷住宅の概要","種類\n(該当項目の□を✓",null,null,null,null,null,null,null,null,null,null,null,null,null,null,null,null,null,null,null,null,null,null,"                                                                         "]
[]
[null,"延べ面積",null,null,null,"延べ面積",null,"㎡"]
[null,null,null,null,null,"　※併用住宅の場合　→　（住宅部分の床面積",null,null,null,null,null,null,null,null,null,null,"㎡）"]
[]
[null,"工事請負(売却)契約日"]
[null,"住宅取得（引渡し）日"]
[null,"居住開始日",null,null,null,null,null,null,"※本年度内であることが要件です。"]
[null,null,null,null,null,null,null,null," ※裏面の補助対象経費を御確認下さい。"]
[null,"補助対象経費（税抜）",null,null,null,null,null,"円"]
[]
["２　世帯構成について"]
["　　　居住を開始する時点における世帯の内容(予定）を記載してください。"]
["続柄\n※世帯主・妻・子・親など",null,"氏名",null,null,null,null,"年齢",null,"現住所\n※既に補助対象住宅に転居された方は前住所を記載"]
[]
[]
[]
[]
[]
[]
["３　補助金額について"]
["　　　該当項目の□を✓のうえ、金額を記載してください。"]
[]
["Ａ","補助対象経費÷２",null,null,null,{"$f":"ROUNDDOWN(F31/2,0)","v":0},null,"円"]
[]
["Ｂ","基本額",null,null,null,null,null,"円","※誘導居住面積水準 ≦ 延べ面積が要件です。裏面の算定表で御確認ください。",null,null,null,null,null,null,null,null,null,null,null,false,{"$f":"IF(U47=TRUE,300000,0)","v":0}]
[null,"若年世帯加算額",null,null,null,null,null,"円","※世帯主が18歳以上40歳未満、または18歳未満の方がいる世帯が対象です。",null,null,null,null,null,null,null,null,null,null,null,false,{"$f":"IF(U48=TRUE,100000,0)","v":0}]
[null,"市外移住世帯加算",null,null,null,null,null,"円","※市外から本市に移住し、かつ住民票を異動された世帯が対象です。",null,null,null,null,null,null,null,null,null,null,null,false,{"$f":"IF(U49=TRUE,100000,0)","v":0}]
["補助金額",null,null,null,{"$f":"IF(OR(L62>R62,L60>R60),V50,W50)","v":0},null,null,"円","※ＡかＢかいずれか低い額（千円未満切り捨て）",null,null,null,null,null,null,null,"裏面に続く。➡",null,null,null,null,"補助対象外",{"$f":"IF(V47+V48+V49<F45,V47+V48+V49,F45)","v":0}]
[]
["申込みにあたっての確認事項"]
["ア．誘導居住面積水準の確認"]
["居住世帯人員\n※該当項目に人数を記載してください。\n（年齢は補助対象住宅への居住開始日で算定）",null,null,"Ａ：10歳以上の居住世帯人数",null,null,null,"Ａ",{"$f":"COUNTIF(H36:I41,\">=10\")","v":0}]
[null,null,null,"Ｂ：6歳以上10歳未満の居住世帯人数",null,null,null,"Ｂ",{"$f":"COUNTIFS(H36:I41,\">=6\",H36:I41,\"<10\")","v":0}]
[null,null,null,"C：3歳以上6歳未満の居住世帯人数",null,null,null,"Ｃ",{"$f":"COUNTIFS(H36:I41,\">=3\",H36:I41,\"<6\")","v":0}]
[null,null,null,"D：3歳未満の居住世帯人数",null,null,null,"Ｄ",{"$f":"COUNTIF(H36:I41,\"<3\")","v":0},null,null,null,null,null,null,null,null,null,null,null,{"$f":"SUM(I54:J57)","v":0}]
["　【誘導居住面積水準の算定比較表】\n　該当項目の□を✓のうえ、上記の居住世帯人員により算定した面積及び補助対象住宅の延べ床面積を記載してください。"]
["区　分",null,null,null,"誘導居住面積水準の算定方式",null,null,null,null,null,null,"先の方法で\n算定した面積",null,null,null,null,null,"補助対象住宅の延べ面積"]
[null,null,null,null,null,"25㎡×｛Ａ+（0.75×Ｂ）+（0.5×Ｃ）+（0.25×Ｄ）｝※+25㎡",null,null,null,null,null,{"$f":"IF(V61=TRUE,IF(U57=0,0,IF(AND((I54+0.75*I55+0.5*I56+0.25*I57)<2,I54=1,(I55+I56+I57)=0),55,U61)),0)","v":0},null,null,"㎡",null,null,{"$f":"IF(V61=TRUE,IF(AND(G24>0,M25=0),G24,M25),0)","v":0},null,"㎡",{"$f":"IF((I54+0.75*I55+0.5*I56+0.25*I57)<2,2,(I54+0.75*I55+0.5*I56+0.25*I57))","v":2}]
["（併用住宅を含む）",null,null,null,null,"・単身者の場合は55㎡",null,null,null,null,null,null,null,null,null,null,null,null,null,null,{"$f":"IF(U57>4,(25*U60+25)*0.95,25*U60+25)","v":75},true]
[null,null,null,null,null,"20㎡×｛Ａ+（0.75×Ｂ）+（0.5×Ｃ）+（0.25×Ｄ）｝※+15㎡",null,null,null,null,null,{"$f":"IF(V63=TRUE,IF(U63>75,75,IF(U57=0,0,IF(AND((I54+0.75*I55+0.5*I56+0.25*I57)<2,I54=1,(I55+I56+I57)=0),40,U63))),0)","v":0},null,null,"㎡",null,null,{"$f":"IF(V63=TRUE,IF(AND(G24>0,M25=0),G24,M25),0)","v":0},null,"㎡"]
[null,null,null,null,null,"・単身者の場合は40㎡",null,null,null,null,null,null,null,null,null,null,null,null,null,null,{"$f":"IF(U60>4,(20*U60+15)*0.95,20*U60+15)","v":55},false]
[null,null,null,"※（　）内が２人未満の場合は２人で算定。"]
[null,null,null,"　 （　）内が4人を超える場合は算定した面積から５％を控除した値を居住面積水準とする。"]
["イ．他の補助金活用の確認"]
["　　　該当項目の□を✓のうえ、活用予定の補助金がある場合は、その名称を記載してください。"]
["　　　なお、国や地方公共団体等から同様の補助金（例：国の子育てグリーン住宅支援事業やZEH補助金等）交付を受ける方は、"]
["　　この補助金の対象外となりますので、ご注意ください。"]
["市の他の補助金の活用予定",null,null,null,null,null,null,null,null,"(",null,null,null,null,null,null,null,null,null,")"]
["国、県等の補助金の活用予定",null,null,null,null,null,null,null,null,"(",null,null,null,null,null,null,null,null,null,")"]
[]
["ウ．申込みに関する確認"]
["　　　各項目の内容について、申込みされる方が確認したうえで□に✓してください。"]
[null,"・ 本申込書の記載内容に虚偽はありません。"]
[null,"・ 補助金の交付対象となった場合は、いわき市補助金交付規則やいわき市浜まち宅地再生支援事業補助金交付要綱等に定める関係書類を整理の上、別途、定められた期日までに当該補助金交付申請に関する書類をいわき市長宛（都市整備課）宛に提出します。\n　なお、交付対象者に選ばれた後に本申込書の記載内容に虚偽があることが判明した場合、また、期限までに当該補助金交付申請に関する書類を提出しない場合には、当該補助金の交付資格を失うことについて異議を申し立てません。"]
[]
[]
[]
[null,"・ 抽選となった場合は、市が非公開による抽選を実施することに同意します。"]
[]
["エ．【フラット35】利用予定の有無"]
["　　　フラット35の利用予定について□に✓してください。"]
["フラット35の利用予定"]
[]
[null,"【補助対象住宅の要件】"]
[null,"　建築基準法等の関係法令に適合する一戸建て住宅（住宅部分の床面積の合計が延べ床面積の２分の１以上の併用"]
[null,"住宅を含む。）またはマンションであって、その住戸専用面積が福島県住生活基本計画に基づく次の水準を満たし"]
[null,"ていること"]
[null,"　・戸建て住宅：一般型誘導居住面積水準"]
[null,"　・マンション：都市居住型誘導居住面積水準（面積が75㎡超の場合は、75㎡）"]

{"sheet":"エントリーシート (見本)","index":1,"n_rows":91,"n_cols":25,"rows_kept":91,"cut":false,"hidden":false,"merged":[[17,0,17,3],[17,5,17,19],[18,0,18,3],[18,5,18,6],[18,8,18,19],[0,12,0,19],[2,0,2,19],[6,15,6,17],[8,9,8,19],[9,9,9,19],[10,9,10,11],[10,13,10,15],[10,17,10,19],[27,5,27,6],[28,1,28,3],[28,5,28,6],[28,8,28,19],[29,8,31,19],[30,1,30,3],[30,5,30,6],[19,0,20,3],[19,5,19,19],[20,5,20,19],[21,0,31,0],[21,1,21,3],[21,5,21,19],[24,12,24,15],[26,1,26,3],[26,5,26,6],[27,1,27,3],[36,0,36,1],[36,2,36,6],[36,7,36,8],[36,9,36,19],[37,0,37,1],[37,2,37,6],[37,7,37,8],[37,9,37,19],[34,0,34,1],[34,2,34,6],[34,7,34,8],[34,9,34,19],[35,0,35,1],[35,2,35,6],[35,7,35,8],[35,9,35,19],[40,0,40,1],[40,2,40,6],[40,7,40,8],[40,9,40,19],[44,1,44,3],[44,5,44,6],[38,0,38,1],[38,2,38,6],[38,7,38,8],[38,9,38,19],[39,0,39,1],[39,2,39,6],[39,7,39,8],[39,9,39,19],[46,0,48,0],[46,1,46,3],[46,5,46,6],[46,8,46,19],[47,1,47,3],[47,5,47,6],[47,8,47,19],[48,1,48,3],[48,5,48,6],[48,8,48,19],[56,8,56,9],[57,0,57,19],[58,0,58,3],[58,4,58,10],[58,11,58,14],[58,17,58,19],[49,4,49,6],[51,0,51,19],[53,0,56,2],[53,3,53,6],[53,8,53,9],[54,3,54,6],[54,8,54,9],[55,3,55,6],[55,8,55,9],[56,3,56,6],[61,5,61,10],[61,11,62,13],[61,14,62,14],[61,17,62,18],[61,19,62,19],[62,5,62,10],[59,5,59,10],[59,11,60,13],[59,14,60,14],[59,17,60,18],[59,19,60,19],[60,5,60,10],[79,1,79,19],[83,0,83,5],[83,10,83,18],[69,0,69,5],[69,10,69,18],[70,0,70,5],[70,10,70,18],[74,1,74,19],[75,0,78,0],[75,1,78,19]]}
[null,null,null,null,null,null,null,null,null,null,null,null,"受付番号：2603001"]
[]
["令和８年度　空き地バンク登録物件活用支援金申込書（エントリーシート）"]
["　※エントリーシートは、募集パンフレットや補助金交付要綱の要件を確認のうえ、現時点での計画内容を記載してください。"]
["　　なお、申込者は原則として、後日、補助金等交付申請書を提出される方と同一である必要がありますので、ご注意願います。"]
["　※エントリーシートは、郵送または持参にて都市整備課へ提出してください。"]
[]
["いわき市長　様"]
[null,null,null,null,null,null,null,"住　所",null,"いわき市平字梅本21"]
[null,null,null,null,null,null,null,"氏　名",null,"区画　太郎"]
[null,null,null,null,null,null,null,"連絡先",null,"0246",null,null,"(","22",null,null,")","1138"]
[null,null,null,null,null,null,null,"e-mail",null,null,"kukaku",null,"＠",null,null,"taro.com"]
[]
["　令和8年度空き地バンク登録物件活用支援金について、次のとおり申込ます。"]
[]
["１　補助対象住宅について"]
["　　建築又は購入する新築の住宅について、現時点の内容（予定）を記載してください。"]
[" ⑴住宅の所在地",null,null,null,"いわき市","いわき市豊間町字塩屋台○-○"]
[" ⑵土地取得日",null,null,null,null,"2026-01-23",null,null," ※令和３年４月１日以降に空き地バンクに登録された土地を取得された方が対象です。"]
[" ⑶所有名義人",null,null,null,null,"区画　太郎"]
[null,null,null,null,null,"※所有者全員を記入願います。\nなお、補助金の交付対象は持ち分が２分の１を超える方（持ち分が２分の１ずつである場合はいずれか一方）に限ります。"]
["⑷住宅の概要","種類\n(該当項目の□を✓",null,null,null,null,null,null,null,null,null,null,null,null,null,null,null,null,null,null,null,null,null,null,"                                                                         "]
[]
[null,"延べ面積",null,null,null,"延べ面積",123.45,"㎡"]
[null,null,null,null,null,"　※併用住宅の場合　→　（住宅部分の床面積",null,null,null,null,null,null,null,null,null,null,"㎡）"]
[]
[null,"工事請負(売却)契約日",null,null,null,"2026-05-10"]
[null,"住宅取得（引渡し）日",null,null,null,"2027-02-10"]
[null,"居住開始日",null,null,null,"2027-02-15",null,null,"※本年度内であることが要件です。"]
[null,null,null,null,null,null,null,null," ※裏面の補助対象経費を御確認下さい。"]
[null,"補助対象経費（税抜）",null,null,null,35000000,null,"円"]
[]
["２　世帯構成について"]
["　　　居住を開始する時点における世帯の内容(予定）を記載してください。"]
["続柄\n※世帯主・妻・子・親など",null,"氏名",null,null,null,null,"年齢",null,"現住所\n※既に補助対象住宅に転居された方は前住所を記載"]
["世帯主",null,"区画　太郎",null,null,null,null,36,null,"いわき市平字梅本21"]
["妻",null,"区画　花子",null,null,null,null,34,null,"〃"]
["子",null,"区画　一郎",null,null,null,null,12,null,"〃"]
["子",null,"区画　博子",null,null,null,null,8,null,"〃"]
["子",null,"区画　二郎",null,null,null,null,1,null,"〃"]
[]
["３　補助金額について"]
["　　　該当項目の□を✓のうえ、金額を記載してください。"]
[]
["Ａ","補助対象経費÷２",null,null,null,{"$f":"ROUNDDOWN(F31/2,0)","v":17500000},null,"円"]
[]
["Ｂ","基本額",null,null,null,null,null,"円","※誘導居住面積水準 ≦ 延べ面積が要件です。裏面の算定表で御確認ください。",null,null,null,null,null,null,null,null,null,null,null,true,{"$f":"IF(U47=TRUE,300000,0)","v":300000}]
[null,"若年世帯加算額",null,null,null,null,null,"円","※世帯主が18歳以上40歳未満、または18歳未満の方がいる世帯が対象です。",null,null,null,null,null,null,null,null,null,null,null,true,{"$f":"IF(U48=TRUE,100000,0)","v":100000}]
[null,"市外移住世帯加算",null,null,null,null,null,"円","※市外から本市に移住し、かつ住民票を異動された世帯が対象です。",null,null,null,null,null,null,null,null,null,null,null,false,{"$f":"IF(U49=TRUE,100000,0)","v":0}]
["補助金額",null,null,null,{"$f":"IF(OR(L62>R62,L60>R60),V50,W50)","v":400000},null,null,"円","※ＡかＢかいずれか低い額（千円未満切り捨て）",null,null,null,null,null,null,null,"裏面に続く。➡",null,null,null,null,"補助対象外",{"$f":"IF(V47+V48+V49<F45,V47+V48+V49,F45)","v":400000}]
[]
["申込みにあたっての確認事項"]
["ア．誘導居住面積水準の確認"]
["居住世帯人員\n※該当項目に人数を記載してください。\n（年齢は補助対象住宅への居住開始日で算定）",null,null,"Ａ：10歳以上の居住世帯人数",null,null,null,"Ａ",{"$f":"COUNTIF(H36:I41,\">=10\")","v":3}]
[null,null,null,"Ｂ：6歳以上10歳未満の居住世帯人数",null,null,null,"Ｂ",{"$f":"COUNTIFS(H36:I41,\">=6\",H36:I41,\"<10\")","v":1}]
[null,null,null,"C：3歳以上6歳未満の居住世帯人数",null,null,null,"Ｃ",{"$f":"COUNTIFS(H36:I41,\">=3\",H36:I41,\"<6\")","v":0}]
[null,null,null,"D：3歳未満の居住世帯人数",null,null,null,"Ｄ",{"$f":"COUNTIF(H36:I41,\"<3\")","v":1},null,null,null,null,null,null,null,null,null,null,null,{"$f":"SUM(I54:J57)","v":5}]
["　【誘導居住面積水準の算定比較表】\n　該当項目の□を✓のうえ、上記の居住世帯人員により算定した面積及び補助対象住宅の延べ床面積を記載してください。"]
["区　分",null,null,null,"誘導居住面積水準の算定方式",null,null,null,null,null,null,"先の方法で\n算定した面積",null,null,null,null,null,"補助対象住宅の延べ面積"]
[null,null,null,null,null,"25㎡×｛Ａ+（0.75×Ｂ）+（0.5×Ｃ）+（0.25×Ｄ）｝※+25㎡",null,null,null,null,null,{"$f":"IF(V61=TRUE,IF(U57=0,0,IF(AND((I54+0.75*I55+0.5*I56+0.25*I57)<2,I54=1,(I55+I56+I57)=0),55,U61)),0)","v":118.75},null,null,"㎡",null,null,{"$f":"IF(V61=TRUE,IF(AND(G24>0,M25=0),G24,M25),0)","v":123.45},null,"㎡",{"$f":"IF((I54+0.75*I55+0.5*I56+0.25*I57)<2,2,(I54+0.75*I55+0.5*I56+0.25*I57))","v":4}]
["（併用住宅を含む）",null,null,null,null,"・単身者の場合は55㎡",null,null,null,null,null,null,null,null,null,null,null,null,null,null,{"$f":"IF(U57>4,(25*U60+25)*0.95,25*U60+25)","v":118.75},true]
[null,null,null,null,null,"20㎡×｛Ａ+（0.75×Ｂ）+（0.5×Ｃ）+（0.25×Ｄ）｝※+15㎡",null,null,null,null,null,{"$f":"IF(V63=TRUE,IF(U63>75,75,IF(U57=0,0,IF(AND((I54+0.75*I55+0.5*I56+0.25*I57)<2,I54=1,(I55+I56+I57)=0),40,U63))),0)","v":0},null,null,"㎡",null,null,{"$f":"IF(V63=TRUE,IF(AND(G24>0,M25=0),G24,M25),0)","v":0},null,"㎡"]
[null,null,null,null,null,"・単身者の場合は40㎡",null,null,null,null,null,null,null,null,null,null,null,null,null,null,{"$f":"IF(U60>4,(20*U60+15)*0.95,20*U60+15)","v":95},false]
[null,null,null,"※（　）内が２人未満の場合は２人で算定。"]
[null,null,null,"　 （　）内が4人を超える場合は算定した面積から５％を控除した値を居住面積水準とする。"]
["イ．他の補助金活用の確認"]
["　　　該当項目の□を✓のうえ、活用予定の補助金がある場合は、その名称を記載してください。"]
["　　　なお、国や地方公共団体等から同様の補助金（例：国の子育てグリーン住宅支援事業やZEH補助金等）交付を受ける方は、"]
["　　この補助金の対象外となりますので、ご注意ください。"]
["市の他の補助金の活用予定",null,null,null,null,null,null,null,null,"(",null,null,null,null,null,null,null,null,null,")"]
["国、県等の補助金の活用予定",null,null,null,null,null,null,null,null,"(",null,null,null,null,null,null,null,null,null,")"]
[]
["ウ．申込みに関する確認"]
["　　　各項目の内容について、申込みされる方が確認したうえで□に✓してください。"]
[null,"・ 本申込書の記載内容に虚偽はありません。"]
[null,"・ 補助金の交付対象となった場合は、いわき市補助金交付規則やいわき市浜まち宅地再生支援事業補助金交付要綱等に定める関係書類を整理の上、別途、定められた期日までに当該補助金交付申請に関する書類をいわき市長宛（都市整備課）宛に提出します。\n　なお、交付対象者に選ばれた後に本申込書の記載内容に虚偽があることが判明した場合、また、期限までに当該補助金交付申請に関する書類を提出しない場合には、当該補助金の交付資格を失うことについて異議を申し立てません。"]
[]
[]
[]
[null,"・ 抽選となった場合は、市が非公開による抽選を実施することに同意します。"]
[]
["エ．【フラット35】利用予定の有無"]
["　　　フラット35の利用予定について□に✓してください。"]
["フラット35の利用予定"]
[]
[null,"【補助対象住宅の要件】"]
[null,"　建築基準法等の関係法令に適合する一戸建て住宅（住宅部分の床面積の合計が延べ床面積の２分の１以上の併用"]
[null,"住宅を含む。）またはマンションであって、その住戸専用面積が福島県住生活基本計画に基づく次の水準を満たし"]
[null,"ていること"]
[null,"　・戸建て住宅：一般型誘導居住面積水準"]
[null,"　・マンション：都市居住型誘導居住面積水準（面積が75㎡超の場合は、75㎡）"]